[Event "44th Chess Olympiad Open 2022"]
[Site "Chennai"]
[Date "2022.07.29"]
[Round "1.65"]
[White "Charles, Cleophas"]
[Black "Murshed, Niaz"]
[Result "0-1"]
[WhiteElo "1593"]
[BlackElo "2413"]
[Annotator "TA"]
[PlyCount "118"]
[EventDate "2022.??.??"]
[TimeControl "60"]

{[%evp 9,118,28,41,21,30,-8,0,0,0,-6,12,-22,-22,-67,-60,-80,-99,-94,-90,-86,
-84,-289,-289,-289,-221,-289,-289,-289,-283,-288,-274,-275,-241,-267,-255,-206,
-109,-394,-392,-1007,-304,-318,-173,-156,-182,-175,-178,-165,-169,-167,-159,
-156,-60,-68,-22,-25,16,0,0,0,0,0,0,0,0,0,0,0,0,0,0,0,0,0,0,-208,-231,-352,
-260,-766,-766,-752,-750,-672,-628,-493,-444,-6819,-9961,-6636,-5622,-11762,
-11004,-4627,-6199,-6528,-3287,-2451,-1960,-12837,-12837,-12838,-12838,-12837,
-12839,-29992,-29993,-29993,-29994,-29997,-29998]} 1. e4 {[%emt 0:00:18]} c5 {
[%emt 0:00:08]} 2. Nf3 {[%emt 0:00:35]} Nc6 {[%emt 0:00:22]} 3. d4 {[%emt 0:00:
00]} cxd4 {[%emt 0:00:06]} 4. Nxd4 {[%emt 0:00:17]} Qc7 {[%emt 0:02:35]} 5. Be3
{[%emt 0:01:57]} e6 {[%emt 0:03:38]} 6. Be2 {[%emt 0:04:38] B44: Sicilian:
Taimanov: 5 Nb5.} Nf6 {[%emt 0:02:14]} 7. Bf3 {[%emt 0:08:40]} a6 {[%emt 0:00:
00]} 8. Nd2 {[%emt 0:07:53] The position is equal.} Ne5 {[%emt 0:01:28]} 9. O-O
{[%emt 0:05:12]} h5 {[%emt 0:08:48]} 10. h3 {[%emt 0:21:17] [#] Inhibits Neg4.}
Neg4 $1 {[%emt 0:05:36]} 11. hxg4 {[%emt 0:12:49]} (11. Bxg4 hxg4 12. f4 gxh3
13. gxh3 Rxh3 $19) (11. Re1 Qh2+) 11... hxg4 {[%emt 0:00:07][%csl Gh8][%cal
Rc7h2]} 12. g3 {[%emt 0:00:34]} gxf3 {[%emt 0:00:18]} 13. N4xf3 {[%emt 0:02:51]
[#]} b6 $146 {[%emt 0:07:37]} ({Predecessor:} 13... b5 14. Bf4 Qc5 15. e5 Nd5
16. Nb3 Qc4 17. Qd2 Nxf4 18. gxf4 Qe4 19. Nh2 g5 {0-1 (35) Hajdu,B-Toth,S
Nyiregyhaza 1994}) 14. Bf4 {[%emt 0:06:36]} d6 {[%emt 0:06:00]} 15. e5 $2 {
[%emt 0:06:44] [#]} (15. Re1 $17) 15... dxe5 $1 $19 {[%emt 0:02:41]} 16. Bxe5 {
[%emt 0:04:07]} Qc6 {[%emt 0:01:15]} 17. Bxf6 {[%emt 0:03:28]} gxf6 {[%emt 0:
00:00]} 18. Nh4 {[%emt 0:01:19] [#]} Rxh4 $1 {[%emt 0:22:36]} 19. gxh4 {
[%emt 0:00:50]} Bb7 {[%emt 0:00:02][%csl Gb7][%cal Rc6g2]} 20. f3 {[%emt 0:01:
12]} O-O-O {[%emt 0:00:14]} 21. Qe2 {[%emt 0:00:58]} Bc5+ {[%emt 0:00:00]} ({
Don't go for} 21... Qxc2 $2 22. Rfc1 Bc5+ 23. Kf1 $19) 22. Kh1 {[%emt 0:02:37]}
f5 {[%emt 0:03:04] Against Ne4} (22... Rh8 $19 23. Kg2 Qd6) 23. Rad1 $2 {
[%emt 0:00:50]} (23. Nb3 $17) 23... Rh8 {[%emt 0:00:20]} 24. Qc4 {[%emt 0:01:
42]} (24. Kg2 Rg8+ 25. Kh3 (25. Kh1 $2 Rg4 $19)) 24... b5 $2 {[%emt 0:03:37]} (
24... Qc7 {( -> ...Qg3)} 25. b4 Bd5 26. bxc5 Bxc4) 25. Qf4 {[%emt 0:01:01] [#]}
Be7 {[%emt 0:00:48] This bishop pair is nice.} (25... Bd6 $142 $1 {[%cal Rd6f4]
} 26. Qg5 (26. Qd4 $2 e5 $19) 26... Qc7) 26. Qe5 {[%emt 0:00:00]} Rxh4+ {
[%emt 0:00:16]} 27. Kg2 {[%emt 0:01:57]} Bd6 {[%emt 0:06:09]} 28. Qc3 {[%emt 0:
00:38]} Rh2+ {[%emt 0:01:29]} 29. Kg1 {[%emt 0:00:32][%cal Yd2e4]} Qxc3 {
[%emt 0:00:01] The board is on fire.} 30. bxc3 {[%emt 0:00:12][%cal Yd2e4]} Re2
{[%emt 0:00:11] Against Ne4.0x0.002089429788dp-1022s more active pieces.} (
30... Kc7 $17 {And now ...Bd5 would win.} 31. c4 Bf4) 31. Rfe1 $15 {[%emt 0:01:
17]} Bc5+ {[%emt 0:00:33]} (31... Rxe1+ $15 32. Rxe1 Bf4) 32. Kh1 $11 {[%emt 0:
00:23]} Rxd2 {[%emt 0:03:45]} 33. Rxd2 {[%emt 0:00:31] Strongly threatening
Rd3.} Bxf3+ {[%emt 0:00:04]} 34. Kh2 {[%emt 0:00:14]} Kc7 {[%emt 0:00:42]} 35.
Ra1 {[%emt 0:00:38]} Bc6 {[%emt 0:00:37]} 36. Kg3 {[%emt 0:01:04]} e5 {[%emt 0:
01:30]} 37. Rh2 {[%emt 0:00:43]} f4+ {[%emt 0:00:00]} 38. Kg4 {[%emt 0:00:16]}
Bd7+ {[%emt 0:00:26]} 39. Kf3 {[%emt 0:00:23]} Bc6+ {[%emt 0:00:32]} 40. Kg4 {
[%emt 0:00:14]} f3 {[%emt 0:01:28]} 41. Rh7 {[%emt 0:31:00]} Bd5 {[%emt 0:31:
08]} 42. Rf1 {[%emt 0:00:44] White is now going downhill.} (42. Rh5 $11 {
and White has nothing to worry.}) 42... f2 $19 {[%emt 0:00:00]} 43. Kg3 {
[%emt 0:00:00]} (43. Rh2 $142 Bxa2 44. Kf5) 43... Bxa2 {[%emt 0:00:00] White
must now prevent ...Bc4.} 44. Rxf2 $2 {[%emt 0:00:00]} (44. Rh5) 44... Bxf2+ {
[%emt 0:00:00]} 45. Kxf2 {[%emt 0:00:00] Endgame KR-KB} a5 {[%emt 0:00:00]
[%cal Ya6a5,Ya5a4,Ya4a3,Ya3a2]} 46. Rh6 {[%emt 0:00:00]} Be6 {[%emt 0:00:00]}
47. Ke3 {[%emt 0:00:00]} a4 {[%emt 0:00:00] ...a3 is the strong threat.} 48.
Ke4 {[%emt 0:00:00]} (48. c4 $142 b4 49. Rh5) 48... Kd6 {[%emt 0:00:00]} 49.
Rh8 {[%emt 0:00:00]} f5+ {[%emt 0:00:00][%cal Yf7f5,Yf5f4,Yf4f3]} 50. Kd3 {
[%emt 0:00:00]} Bc4+ {[%emt 0:00:00]} 51. Ke3 {[%emt 0:00:00]} a3 {[%emt 0:00:
00]} 52. Rd8+ {[%emt 0:00:00]} Kc7 {[%emt 0:00:00]} 53. Rd1 {[%emt 0:00:00]} a2
{[%emt 0:00:00]} 54. Kd2 {[%emt 0:00:00]} f4 {[%emt 0:00:00]} 55. Ke1 {[%emt 0:
00:00]} e4 {[%emt 0:00:00][%cal Ye5e4,Ye4e3]} 56. Kf2 {[%emt 0:00:00]} Kb6 {
[%emt 0:00:00]} 57. Ke1 {[%emt 0:00:20]} e3 {[%emt 0:00:00] Black mates.} 58.
Rd6+ {[%emt 0:03:05]} Ka5 {[%emt 0:00:00]} 59. Rd1 {[%emt 0:00:38]} f3 {
[%emt 0:00:00] Weighted Error Value: White=1.01/Black=0.29 (precise)} 0-1

[Event "44th Chess Olympiad Open 2022"]
[Site "Chennai"]
[Date "2022.07.29"]
[Round "1.66"]
[White "Matamoros Franco, Carlos S."]
[Black "Depaune, Ricko"]
[Result "1-0"]
[WhiteElo "2459"]
[BlackElo "1726"]
[Annotator "TA"]
[PlyCount "79"]
[EventDate "2022.??.??"]
[TimeControl "60"]

{[%evp 9,79,20,27,35,81,86,104,95,110,93,87,75,78,66,70,65,93,91,102,93,108,96,
131,151,129,136,126,127,127,138,145,78,130,83,91,88,115,125,125,117,122,71,100,
26,41,34,82,70,97,34,53,54,116,18,63,52,84,84,110,113,688,688,911,853,967,947,
1044,1004,29989,29990,29990,29991]} 1. Nf3 {[%emt 0:00:03]} e6 {[%emt 0:00:30]}
2. g3 {[%emt 0:00:11]} Nf6 {[%emt 0:00:21]} 3. Bg2 {[%emt 0:00:09]} d5 {
[%emt 0:01:03]} 4. O-O {[%emt 0:00:20]} Bd6 {[%emt 0:00:08]} 5. d4 {[%emt 0:00:
00]} h6 {[%emt 0:00:16]} 6. c4 {[%emt 0:00:12] A07: Réti Opening: New York
and Capablanca Systems.} dxc4 {[%emt 0:01:23]} (6... O-O $14) 7. Nbd2 $16 {
[%emt 0:10:10] [#]} Nbd7 $146 {[%emt 0:03:04]} ({Predecessor:} 7... O-O 8. Nxc4
Nc6 9. b3 Re8 10. Bb2 Rb8 11. Rc1 Ne7 12. Nfe5 Ned5 13. e4 Nb6 14. Nxf7 Kxf7
15. e5 Bxe5 16. dxe5 {1-0 (24) Thomzik,D-Lautenbach,W freechess.de 2021}) 8.
Nxc4 {[%emt 0:00:22] White is better.} Nb6 {[%emt 0:00:15]} 9. Nce5 {[%emt 0:
00:00]} O-O {[%emt 0:02:07]} 10. Qc2 {[%emt 0:03:35]} Bd7 {[%emt 0:01:22]} 11.
Bd2 {[%emt 0:09:11]} Rc8 {[%emt 0:00:47]} 12. Nxd7 {[%emt 0:12:02] White is
much more active. The black rooks are badly placed.} Nbxd7 {[%emt 0:01:00] [#]}
13. b4 $1 {[%emt 0:05:01] Prevents c5.} c6 {[%emt 0:01:20]} 14. Rab1 {[%emt 0:
00:00]} b5 {[%emt 0:01:24]} 15. e4 {[%emt 0:01:56]} e5 {[%emt 0:02:24]} 16.
dxe5 {[%emt 0:09:44]} Bxe5 {[%emt 0:01:23]} 17. Be3 {[%emt 0:11:47]} Qc7 {
[%emt 0:01:23]} 18. Bh3 {[%emt 0:03:08] Inhibits Ng4.} Rfe8 {[%emt 0:03:56]}
19. Rfd1 {[%emt 0:06:58]} Rcd8 {[%emt 0:01:47]} 20. Rdc1 {[%emt 0:04:46]} ({
Better is} 20. Rbc1) 20... Nb8 {[%emt 0:03:26]} (20... Nb6 $142) 21. Nxe5 {
[%emt 0:01:11]} (21. a4 $142) 21... Qxe5 {[%emt 0:00:12]} 22. Bxa7 {[%emt 0:00:
00] Bb6 is the strong threat.} Qh5 {[%emt 0:04:17]} 23. Bg2 {[%emt 0:02:49]} ({
Much less strong is} 23. Bf5 $6 g6 24. Qc3 Nbd7 25. Bxd7 Nxd7 $11) 23... Ng4 {
[%emt 0:00:16]} 24. h3 {[%emt 0:00:49]} Ne5 {[%emt 0:00:14]} 25. Bxb8 {[%emt 0:
00:00]} (25. Rd1 $142) 25... Rxb8 {[%emt 0:00:11]} 26. Qd1 {[%emt 0:00:16]} (
26. f4 $16 Nc4 27. Rb3) 26... Qg6 $11 {[%emt 0:00:26]} 27. Qe2 {[%emt 0:00:25]}
Rbd8 {[%emt 0:01:36]} (27... Ra8 $14) 28. Rd1 $16 {[%emt 0:00:17]} Qe6 {
[%emt 0:02:19]} 29. a3 {[%emt 0:03:09]} (29. f4 $16 {Black must now prevent
Rxd8.} Nc4 30. e5) 29... Ra8 {[%emt 0:02:29]} 30. Ra1 {[%emt 0:00:20][%cal
Yb1a1,Ya1c1,Yc1c6]} Ra4 {[%emt 0:00:34]} (30... Red8 $14) 31. Bf1 {[%emt 0:00:
56]} ({White should play} 31. f4 $16 Nc4 32. e5) 31... Rea8 {[%emt 0:00:13]}
32. Qe3 {[%emt 0:00:10]} Nc4 {[%emt 0:00:13]} 33. Bxc4 {[%emt 0:00:07]} Qxc4 {
[%emt 0:00:15]} 34. Rd3 {[%emt 0:01:23]} Rxb4 $2 {[%emt 0:04:23] This move
loses the game for Black.} (34... Re8 $16) 35. Rc1 $18 {[%emt 0:00:13]} Qxe4 {
[%emt 0:02:20]} 36. axb4 {[%emt 0:00:01]} Qxb4 {[%emt 0:00:45]} 37. Rxc6 {
[%emt 0:00:12]} Ra1+ {[%emt 0:00:44]} 38. Rc1 {[%emt 0:00:16] [#] White
threatens Rd8+ and mate.} Ra6 {[%emt 0:01:16]} 39. Rd8+ {[%emt 0:00:18]} Kh7 {
[%emt 0:01:55]} 40. Qd3+ {[%emt 0:00:08] Weighted Error Value: White=0.16 
(very precise) /Black=0.66} 1-0

[Event "44th Chess Olympiad Open 2022"]
[Site "Chennai"]
[Date "2022.07.29"]
[Round "1.66"]
[White "Dabuae, Thubalkain"]
[Black "Bastidas Rodriguez, Emilio"]
[Result "0-1"]
[WhiteElo "1941"]
[BlackElo "2351"]
[Annotator "ChessBase"]
[PlyCount "63"]
[EventDate "2022.??.??"]
[TimeControl "60"]

1. e4 {[%emt 0:00:06]} c5 {[%emt 0:00:05]} 2. Nf3 {[%emt 0:00:56]} e6 {[%emt 0:
00:00]} 3. Nc3 {[%emt 0:01:46]} a6 {[%emt 0:00:16]} 4. d4 {[%emt 0:00:48]} cxd4
{[%emt 0:00:03]} 5. Nxd4 {[%emt 0:00:31]} b5 {[%emt 0:00:53]} 6. a3 {[%emt 0:
00:00]} Bb7 {[%emt 0:00:40]} 7. Bd3 {[%emt 0:00:30]} Qc7 {[%emt 0:03:39]} 8.
O-O {[%emt 0:01:22]} Nf6 {[%emt 0:00:39]} 9. Re1 {[%emt 0:03:54]} d6 {[%emt 0:
00:00]} 10. Bg5 {[%emt 0:03:30]} Nbd7 {[%emt 0:01:37]} 11. Rc1 {[%emt 0:06:20]}
Be7 {[%emt 0:12:19]} 12. Qe2 {[%emt 0:03:36]} Rc8 {[%emt 0:11:11]} 13. Kh1 {
[%emt 0:06:45]} O-O {[%emt 0:10:26]} 14. Nd1 {[%emt 0:00:21]} Ne5 {[%emt 0:00:
00]} 15. f3 {[%emt 0:08:19]} Rfe8 {[%emt 0:10:59]} 16. Nf2 {[%emt 0:00:49]} Nc4
{[%emt 0:10:27]} 17. Bxc4 {[%emt 0:00:35]} Qxc4 {[%emt 0:00:20]} 18. Qxc4 {
[%emt 0:02:14]} Rxc4 {[%emt 0:00:43]} 19. c3 {[%emt 0:00:37]} Ng4 {[%emt 0:00:
00]} 20. Nxg4 {[%emt 0:01:05]} Bxg5 {[%emt 0:00:06]} 21. Rcd1 {[%emt 0:00:26]}
Be7 {[%emt 0:06:12]} 22. Ne3 {[%emt 0:05:54]} Rc7 {[%emt 0:00:14]} 23. Nec2 {
[%emt 0:00:08]} g5 {[%emt 0:06:13]} 24. Ra1 {[%emt 0:00:17]} Rb8 {[%emt 0:00:
00]} 25. h3 {[%emt 0:06:08]} Bc8 {[%emt 0:01:50]} 26. Nb4 {[%emt 0:05:21]} Bf6
{[%emt 0:00:53]} 27. e5 {[%emt 0:02:49]} dxe5 {[%emt 0:03:59]} 28. Ndc6 {
[%emt 0:04:44]} Rb6 {[%emt 0:00:03]} 29. Nxe5 {[%emt 0:00:43]} a5 {[%emt 0:00:
00]} 30. Nc2 {[%emt 0:00:56]} Rd6 {[%emt 0:00:47]} 31. Rad1 {[%emt 0:02:00]}
Rxd1 {[%emt 0:00:11]} 32. Nd4 {[%emt 0:00:22]} 0-1

[Event "44th Chess Olympiad Open 2022"]
[Site "Chennai"]
[Date "2022.07.29"]
[Round "1.66"]
[White "Taleka, Jed Selu"]
[Black "Esmeraldas Huachi, Anderson"]
[Result "0-1"]
[WhiteElo "1672"]
[BlackElo "2071"]
[Annotator "NA RC"]
[PlyCount "68"]
[EventDate "2022.??.??"]
[TimeControl "60"]

1. d4 {[%emt 0:00:10]} d5 {[%emt 0:00:25]} 2. Nf3 {[%emt 0:00:20]} Nf6 {
[%emt 0:00:28]} 3. Bf4 {[%emt 0:00:31]} e6 {[%emt 0:00:10]} 4. a3 {[%emt 0:00:
00]} Bd6 {[%emt 0:00:44]} 5. Bxd6 {[%emt 0:00:26]} Qxd6 {[%emt 0:01:18]} 6. e3
{[%emt 0:00:22]} O-O {[%emt 0:01:04]} 7. Bd3 {[%emt 0:00:14]} Nbd7 {[%emt 0:00:
00]} 8. O-O {[%emt 0:00:25]} e5 {[%emt 0:00:15]} 9. Nxe5 {[%emt 0:00:57]} Nxe5
{[%emt 0:00:09]} 10. dxe5 {[%emt 0:00:12]} Qxe5 {[%emt 0:00:09]} 11. Nc3 {
[%emt 0:00:49]} Ng4 {[%emt 0:09:48]} 12. g3 {[%emt 0:00:22]} c6 {[%emt 0:00:19]
} 13. Qd2 {[%emt 0:00:33]} Qh5 {[%emt 0:07:19]} 14. f3 {[%emt 0:00:51]} Ne5 {
[%emt 0:05:49]} 15. Be2 {[%emt 0:01:06]} Bh3 {[%emt 0:11:17]} 16. Rf2 {[%emt 0:
00:00]} Qh6 {[%emt 0:12:13]} 17. Re1 {[%emt 0:01:46]} Rfe8 {[%emt 0:06:53]} 18.
f4 {[%emt 0:00:57]} Ng4 {[%emt 0:01:18]} 19. Bxg4 {[%emt 0:00:28]} Bxg4 {
[%emt 0:00:08]} 20. Qd4 {[%emt 0:01:27]} f5 {[%emt 0:04:07]} 21. h4 {[%emt 0:
00:00]} Re7 {[%emt 0:04:37]} 22. b4 {[%emt 0:04:19]} a5 {[%emt 0:02:21]} 23. b5
{[%emt 0:03:13]} Qd6 {[%emt 0:01:45]} 24. bxc6 {[%emt 0:00:21]} bxc6 {[%emt 0:
00:00]} 25. Rb1 {[%emt 0:00:34]} Qxa3 {[%emt 0:02:13]} 26. Nxd5 {[%emt 0:00:43]
} Re4 {[%emt 0:01:32]} 27. Qd2 {[%emt 0:03:55]} Rae8 {[%emt 0:15:26]} 28. Nc7 {
[%emt 0:00:35]} R8e7 {[%emt 0:00:44]} 29. Qd8+ {[%emt 0:00:42]} Kf7 {[%emt 0:
00:00]} 30. Rb3 {[%emt 0:03:19]} Qc1+ {[%emt 0:00:08]} 31. Kg2 {[%emt 0:04:19]}
Rxe3 {[%emt 0:00:07]} 32. Nd5 {[%emt 0:10:52]} Bf3+ {[%emt 0:03:27]} 33. Rxf3 {
[%emt 0:05:29]} Re2+ {[%emt 0:00:07]} 34. Rf2 {[%emt 0:00:27]} Rxf2+ {[%emt 0:
00:00]} 0-1

[Event "44th Chess Olympiad Open 2022"]
[Site "Chennai"]
[Date "2022.07.29"]
[Round "1.68"]
[White "Cawdery, Daniel"]
[Black "Ebosse Kingue Victor Patrick"]
[Result "1-0"]
[WhiteElo "2417"]
[BlackElo "2054"]
[Annotator "TA"]
[PlyCount "69"]
[EventDate "2022.??.??"]
[TimeControl "60"]

{[%evp 19,69,16,0,17,59,44,55,46,79,95,116,110,174,122,107,84,82,-47,135,101,
101,99,143,144,166,87,168,137,115,67,69,76,62,0,124,0,99,0,276,89,85,71,139,
108,125,144,144,135,902,839,1609,1478]} 1. e4 {[%emt 0:00:03]} c5 {[%emt 0:00:
00]} 2. Nf3 {[%emt 0:00:10]} d6 {[%emt 0:00:18]} 3. d4 {[%emt 0:00:26]} cxd4 {
[%emt 0:00:08]} 4. Nxd4 {[%emt 0:00:30]} Nf6 {[%emt 0:00:08]} 5. Nc3 {[%emt 0:
00:00]} a6 {[%emt 0:00:10]} 6. Be3 {[%emt 0:00:57]} e5 {[%emt 0:00:14]} 7. Nb3
{[%emt 0:00:13]} Be6 {[%emt 0:00:15]} 8. f3 {[%emt 0:00:53]} h5 {[%emt 0:00:25]
} 9. Qd2 {[%emt 0:02:20]} Nbd7 {[%emt 0:00:17]} 10. O-O-O {[%emt 0:01:00]} Rc8
{[%emt 0:04:59]} 11. Kb1 {[%emt 0:02:17] B90: Sicilian Najdorf: Unusual White
6th moves, 6 Be3 Ng4 and 6 Be3 e5.} Qc7 {[%emt 0:01:59]} 12. Nd5 {[%emt 0:00:
00]} Bxd5 {[%emt 0:06:22]} 13. exd5 {[%emt 0:00:06] White is slightly better.}
Nb6 {[%emt 0:00:14]} 14. c4 $1 {[%emt 0:01:55]} Be7 {[%emt 0:07:17]} (14...
Nxc4 $2 15. Bxc4 Be7 16. Rc1 $18) 15. Rc1 {[%emt 0:02:25]} O-O {[%emt 0:01:04]}
(15... Nbd7 $16) 16. Bd3 {[%emt 0:01:51] [#]} (16. Rg1 $18) 16... Rfe8 $146 {
[%emt 0:07:27]} ({Predecessor:} 16... Na4 17. Rhg1 Nc5 18. Nxc5 dxc5 19. h3 b5
20. g4 bxc4 21. Bxc4 h4 22. g5 Nh5 {1-0 (31) Senders,M (1895)-Mehra,R (1856)
Haarlem 2012}) 17. Bf5 {[%emt 0:15:46] This bishop pair is nice.} Ra8 {[%emt 0:
00:00]} (17... Nxc4 $2 18. Rxc4 (18. Qd3 g6 $16) 18... Qxc4 19. Rc1 Qxd5 20.
Bxc8 $18) 18. g4 {[%emt 0:12:04]} (18. Qe2 $16) 18... g6 $2 {[%emt 0:12:57]} (
18... Nxc4 $15 19. Qd3 b5) 19. g5 {[%emt 0:04:28]} (19. Qb4 $6 Nbd7 20. g5 Nh7
21. Bxd7 Qxd7 $11) 19... Nfd7 {[%emt 0:06:16]} 20. Bd3 {[%emt 0:00:44] 0x0.
00249746790fdp-1022s more active pieces.} a5 {[%emt 0:06:10]} 21. Qc2 {[%emt 0:
00:00][%cal Yd3g6] Threatens to win with Bxg6!} Kg7 {[%emt 0:08:37]} (21... a4
$2 22. Bxg6 $1 Nf8 23. Bxf7+ $1 (23. Bxb6 Qxb6 24. Bxf7+ Kxf7 $15) 23... Kxf7
24. g6+ Kg7 25. Qf5 $18) 22. f4 {[%emt 0:01:21]} (22. Rhf1 $18) 22... a4 {
[%emt 0:12:19]} (22... exf4 $16 {keeps fighting.} 23. Bxf4 Ne5) 23. Nd2 $36 {
[%emt 0:00:16] Strongly threatening f5. White is on the roll.} exf4 {[%emt 0:
01:37]} 24. Bxf4 {[%emt 0:03:22]} ({Better is} 24. Bd4+ $1 $16 Ne5 25. h4)
24... Nc5 $14 {[%emt 0:04:07]} 25. Rhf1 {[%emt 0:01:45] aiming for Be3.} Bf8 {
[%emt 0:01:12]} 26. Rf3 {[%emt 0:05:21]} (26. b4 axb3 27. Nxb3 Nxb3 28. axb3
Kg8 $17) (26. Bg3 $14) 26... Kg8 {[%emt 0:04:27]} (26... Nbd7 $11) 27. Be3 {
[%emt 0:04:13]} (27. Bg3 $1 $16) 27... Bg7 {[%emt 0:02:28]} (27... Nxd3 $11 28.
Qxd3 Nd7) 28. Rcf1 {[%emt 0:02:35]} (28. Bxc5 $16 dxc5 29. Rcf1) 28... Re7 $2 {
[%emt 0:03:17] [#]} (28... Nxd3 $11 29. Qxd3 Re7) 29. Bxc5 $2 {[%emt 0:00:30]}
(29. Bxg6 $1 $18 fxg6 30. Qxg6) 29... Qxc5 $16 {[%emt 0:01:01]} 30. Ne4 {
[%emt 0:00:09][%cal Yd2e4,Ye4f6,Yf6h7]} Qd4 {[%emt 0:02:17]} (30... Rxe4 $142
31. Bxe4 Nxc4) 31. Nf6+ {[%emt 0:00:00]} Kf8 {[%emt 0:00:32]} 32. a3 {[%emt 0:
06:06] Black must now prevent Rf4.} Rc8 {[%emt 0:00:36]} 33. Rf4 {[%emt 0:00:
21]} Qe5 {[%emt 0:01:36]} (33... Qc5 $16 34. Ne4 (34. Bxg6 Nxc4 35. Ka2 Qb5 $14
) 34... Qc7) 34. Re4 $18 {[%emt 0:01:19]} Qxg5 {[%emt 0:00:23]} 35. Nh7+ {
[%emt 0:00:02] Weighted Error Value: White=0.45/Black=0.63} 1-0

[Event "44th Chess Olympiad Open 2022"]
[Site "Chennai"]
[Date "2022.07.29"]
[Round "1.68"]
[White "Mhango, Banele"]
[Black "Zebaze Dongmo Loic Dylane"]
[Result "1-0"]
[WhiteElo "2238"]
[BlackElo "1837"]
[Annotator "ChessBase"]
[PlyCount "95"]
[EventDate "2022.??.??"]
[TimeControl "60"]

1. d4 {[%emt 0:00:05]} d5 {[%emt 0:00:10]} 2. c4 {[%emt 0:00:05]} e6 {[%emt 0:
00:00]} 3. Nc3 {[%emt 0:00:04]} a6 {[%emt 0:00:24]} 4. cxd5 {[%emt 0:01:59]}
exd5 {[%emt 0:00:08]} 5. Bf4 {[%emt 0:00:33]} Nf6 {[%emt 0:00:34]} 6. e3 {
[%emt 0:01:46]} Bd6 {[%emt 0:01:05]} 7. Bg5 {[%emt 0:03:20]} c6 {[%emt 0:03:41]
} 8. Bd3 {[%emt 0:00:36]} O-O {[%emt 0:02:04]} 9. Qc2 {[%emt 0:01:56]} h6 {
[%emt 0:01:21]} 10. Bh4 {[%emt 0:00:04]} Re8 {[%emt 0:03:23]} 11. Nge2 {
[%emt 0:02:31]} Bg4 {[%emt 0:05:23]} 12. O-O {[%emt 0:03:40]} Nbd7 {[%emt 0:00:
00]} 13. f3 {[%emt 0:09:02]} Be6 {[%emt 0:00:37]} 14. h3 {[%emt 0:05:52]} Nb6 {
[%emt 0:11:00]} 15. Rad1 {[%emt 0:02:29]} Be7 {[%emt 0:02:21]} 16. Bf2 {
[%emt 0:00:51]} Qc7 {[%emt 0:08:43]} 17. Ng3 {[%emt 0:06:52]} Bd6 {[%emt 0:00:
00]} 18. Nce2 {[%emt 0:01:30]} Bd7 {[%emt 0:04:10]} 19. Nf5 {[%emt 0:03:01]}
Bxf5 {[%emt 0:01:00]} 20. Bxf5 {[%emt 0:00:05]} Nh5 {[%emt 0:02:37]} 21. e4 {
[%emt 0:10:55]} Bh2+ {[%emt 0:05:09]} 22. Kh1 {[%emt 0:00:21]} Ng3+ {[%emt 0:
00:00]} 23. Bxg3 {[%emt 0:01:09]} Bxg3 {[%emt 0:00:06]} 24. e5 {[%emt 0:00:30]}
Bh4 {[%emt 0:00:36]} 25. f4 {[%emt 0:00:53]} Nc4 {[%emt 0:00:30]} 26. Qc3 {
[%emt 0:00:21]} Qa5 {[%emt 0:01:21]} 27. Qxa5 {[%emt 0:05:26]} Nxa5 {[%emt 0:
00:00]} 28. b3 {[%emt 0:00:32]} g6 {[%emt 0:05:20]} 29. Bg4 {[%emt 0:00:38]} h5
{[%emt 0:00:25]} 30. Bf3 {[%emt 0:00:04]} b6 {[%emt 0:04:55]} 31. Rc1 {[%emt 0:
00:00]} Be7 {[%emt 0:01:44]} 32. Rc2 {[%emt 0:02:54]} Rad8 {[%emt 0:02:10]} 33.
Rd1 {[%emt 0:00:18]} Bb4 {[%emt 0:01:31]} 34. Nc1 {[%emt 0:02:13]} Bf8 {
[%emt 0:01:52]} 35. Be2 {[%emt 0:01:17]} b5 {[%emt 0:00:30]} 36. Nd3 {[%emt 0:
00:00]} Kg7 {[%emt 0:03:15]} 37. f5 {[%emt 0:07:22]} Kh7 {[%emt 0:05:47]} 38.
Rf1 {[%emt 0:01:50]} Rd7 {[%emt 0:02:16]} 39. g4 {[%emt 0:03:00]} hxg4 {
[%emt 0:02:34]} 40. Bxg4 {[%emt 0:00:04]} Ra7 {[%emt 0:02:27]} 41. Rcf2 {
[%emt 0:30:18]} g5 {[%emt 0:31:41]} 42. f6 {[%emt 0:00:19]} Nb7 {[%emt 0:02:17]
} 43. Bd7 {[%emt 0:00:30]} Rd8 {[%emt 0:03:48]} 44. Bf5+ Kg8 {[%emt 0:00:00]}
45. Rg2 {[%emt 0:02:58]} Bh6 {[%emt 0:01:55]} 46. h4 {[%emt 0:00:07]} Kh8 {
[%emt 0:01:26]} 47. hxg5 {[%emt 0:00:06]} Bf8 {[%emt 0:00:02]} 48. Rf4 {
[%emt 0:00:21]} 1-0